Cogmind - Beta 12 @@@ ROGUE MODE // 2023.03.07 @ 02:08:57 Player: Grimalkyne Result: Destroyed by as-30690 with Assembled Rifle Performance ------------- Evolutions (0) 0 Regions Visited (2) 400 Robots Destroyed (15) 75 Value Destroyed (403) 403 Prototype IDs (2) 40 Alien Tech Used (0) 0 Bonus (0) 0 TOTAL SCORE: 918 Bonus ------- None Cogmind --------- Core Integrity 0/250 Matter 270/300 Energy 90/250 System Corruption 0% Temperature Cool (0) Movement Hovering (56) Location -10/Mines Parts ------- > --- POWER (1) -------- Ion Engine > --- PROPULSION (2) --- Hover Unit Hover Unit > --- UTILITY (2) ------ Visual Processing Unit > --- WEAPON (2) ------- (None) > --- INVENTORY (5) ---- Hover Unit Hover Unit ECM Suite Medium Laser Mining Claw Peak State ------------ > --- POWER ------------ Light Nuclear Core > --- PROPULSION ------- Aluminum Leg Aluminum Leg > --- UTILITY ---------- Large Storage Unit Visual Processing Unit > --- WEAPON ----------- Particle Gun Assault Rifle > --- INVENTORY -------- Ion Engine Aluminum Leg Aluminum Leg Aluminum Leg Aluminum Leg Compact Wheel Flight Unit Flight Unit Small Storage Unit ECM Suite Hacking Suite Medium Laser Medium Laser Grenade Launcher [Rating: 12] Favorites ----------- Power Light Nuclear Core Engine Ion Engine Power Core Light Nuclear Core Propulsion Aluminum Leg Leg Aluminum Leg Wheel Compact Wheel Hover Unit Hover Unit Utility Visual Processing Unit Storage Large Storage Unit Processor Visual Processing Unit Weapon Assault Rifle Energy Gun Particle Gun Ballistic Gun Assault Rifle Launcher Grenade Launcher Build | -11 -10 -10 ------- Run | Jun Mat Min Slots Evolved . | . . . Power . | . . . Propulsion . | . . . Utility . | . . . Weapon . | . . . Parts Attached 24 | 7 13 4 Power 4 | 1 2 1 Engine 3 | 1 1 1 Core 1 | . 1 . Reactor . | . . . Propulsion 9 | 2 4 3 Treads . | . . . Leg 6 | 2 4 . Wheel 1 | . . 1 Hover 2 | . . 2 Flight . | . . . Utility 3 | 1 2 . Device . | . . . Storage 2 | 1 1 . Processor 1 | . 1 . Hackware . | . . . Protection . | . . . Artifact . | . . . Weapon 8 | 3 5 . Energy Gun 5 | 2 3 . Energy Cannon . | . . . Ballistic Gun 2 | 1 1 . Ballistic Cannon . | . . . Launcher 1 | . 1 . Special Weapon . | . . . Impact Weapon . | . . . Slashing Weapon . | . . . Piercing Weapon . | . . . Special Melee Weapon . | . . . Unidentified Prototypes . | . . . Parts Lost 6 | . . 6 Power 1 | . . 1 Propulsion 3 | . . 3 Utility . | . . . Weapon 2 | . . 2 Highest Loss Streak 6 | . . 6 To Critical Strikes . | . . . Average Slot Usage (%) 94 | . 95 87 Engine 5 | . 6 . Core 7 | . 7 10 Leg 27 | . 28 21 Storage 13 | . 14 13 Processor 10 | . 9 14 Energy Gun 13 | . 14 12 Ballistic Gun 11 | . 13 . Launcher 1 | . . 10 Naked Turns . | . . . Heaviest Build 31 | 14 31 31 Greatest Support 20 | 20 20 20 Greatest Overweight (x) 6 | . 1 6 Average Overweight (x) . | . . 1 Largest Inventory Capacity 15 | 8 15 15 Average Capacity 12 | 7 12 14 Most Carried 15 | 5 15 15 Average Carried 11 | 2 11 14 Final Capacity 15 | 8 15 5 Final Carried 15 | 4 15 5 Class Distribution -------------------- 53% | Scavenger-Mutant 46% | Mutant Dominant Class ---------------- Scavenger-Mutant | -10/Materials Scavenger-Mutant | -10/Mines Resources | -11 -10 -10 ----------- Run | Jun Mat Min Matter Collected 511 | 224 277 10 Remotely . | . . . Salvage Created 526 | . 521 5 Parts 39 | . 39 . Haulers Intercepted . | . . . Recyclers Shooed 1 | . 1 . Parts Field Recycled . | . . . Retrieved Matter . | . . . Parts Self-Destructed . | . . . Prevented . | . . . Kills | -11 -10 -10 ------- Run | Jun Mat Min Combat Hostiles Destroyed 12 | . 9 3 Guns 9 | . 9 . AOE 3 | . . 3 Classes Destroyed 6 | . 5 1 Worker 1 | . 1 . Recycler 1 | . 1 . Operator 1 | . 1 . Watcher 3 | . 3 . Grunt 9 | . 9 . Assembled 3 | . . 3 Best Kill Streak 3 | . 3 3 Combat Bots Only 3 | . 3 3 Max Kills in Single Turn 2 | . 2 2 Gunslinging . | . . . Exploded 2 | . . 2 Melee . | . . . Uniques/NPCs Destroyed . | . . . Combat | -11 -10 -10 -------- Run | Jun Mat Min Damage Taken 1043 | . 375 668 Core 252 | . 41 211 Absorbed by Shields . | . . . Core Remaining (%) 100 | 100 . . Volleys Fired 39 | . 37 2 Largest 2 | . 2 2 Hottest 95 | . 85 95 Shots Fired 78 | . 74 4 Gun 76 | . 74 2 Cannon . | . . . Launcher 2 | . . 2 Special . | . . . Kinetic 37 | . 37 . Thermal 27 | . 25 2 Explosive 2 | . . 2 Electromagnetic 12 | . 12 . Robot Hit Streak 25 | . 25 1 Robot Miss Streak 3 | . 3 1 Penetration Max . | . . . Secondary Targets . | . . . Shots Hit Robots 51 | . 50 1 Core Hits 35 | . 27 8 Critical Kills . | . . . Critical Parts Destroyed . | . . . Critical Strikes 2 | . 2 . Burn 1 | . 1 . Corrupt 1 | . 1 . Melee Attacks . | . . . Impact . | . . . Slashing . | . . . Piercing . | . . . Sneak Attacks . | . . . Combat Hostiles . | . . . Follow-up Attacks . | . . . Damage Inflicted 915 | . 745 170 Guns 699 | . 681 18 Cannons . | . . . Explosions 216 | . 64 152 Melee . | . . . Ramming . | . . . Kinetic 223 | . 223 . Thermal 374 | . 356 18 Explosive 152 | . . 152 Electromagnetic 166 | . 166 . Impact . | . . . Slashing . | . . . Piercing . | . . . Highest Corruption . | . . . Average Corruption . | . . . Corruption Purged . | . . . Corruption Blocked . | . . . Overload Shots . | . . . Overflow Damage . | . . . Projectiles . | . . . Explosions . | . . . Melee . | . . . Knockbacks . | . . . Impact . | . . . Kinetic . | . . . Secondary . | . . . Self-Inflicted Damage 48 | . 37 11 Shots 2 | . 1 1 Rammed . | . . . Targets Rammed . | . . . Kicked . | . . . Crushed . | . . . Highest Temperature 231 | . 231 93 Average Temperature 57 | . 60 32 Received Heat Transfer 349 | . 189 160 Siege Activations . | . . . Robots Corrupted . | . . . Combat Hostiles . | . . . Parts Fried . | . . . Impact Corruptions . | . . . Robots Melted . | . . . Combat Hostiles . | . . . Parts Melted . | . . . Heat Transferred 975 | . 938 37 Parts Sabotaged . | . . . Parts Stolen . | . . . Parts Stripped . | . . . Power Chain Reactions 1 | . 1 . Missiles Intercepted . | . . . Alert | -11 -10 -10 ------- Run | Jun Mat Min Peak Influence 163 | . 163 11 Initial . | . . . Average 42 | . 52 . Maximum Alert Level . | . . . Low Security (%) 100 | 100 100 100 Level 1 . | . . . Level 2 . | . . . Level 3 . | . . . Level 4 . | . . . Level 5 . | . . . High Security . | . . . Max Security . | . . . Squads Dispatched 2 | . 2 . Investigation 1 | . 1 . Extermination . | . . . Reinforcement 1 | . 1 . Assault . | . . . Garrison . | . . . Intercept . | . . . Searches Triggered . | . . . Construction Impeded . | . . . Haulers Reinforced . | . . . Active Scanning Responses . | . . . Cargo Convoy Interrupts . | . . . Stealth | -11 -10 -10 --------- Run | Jun Mat Min Distress Signals 2 | . 2 . Communications Jammed . | . . . Distress Signals . | . . . Times Spotted 33 | . 17 16 Peak Tracking Total 10 | . 3 10 Tactical Retreats 1 | . . 1 Traps | -11 -10 -10 ------- Run | Jun Mat Min Traps Triggered 1 | . 1 . Indirectly . | . . . Trap Hack Attempts . | . . . Triggered . | . . . Disarmed . | . . . Reprogrammed . | . . . Reused . | . . . Traps Extracted . | . . . Installed . | . . . Triggered . | . . . Machines | -11 -10 -10 ---------- Run | Jun Mat Min Machines Disabled . | . . . Max in Single Turn . | . . . Machines Repaired . | . . . Machines Sabotaged . | . . . Overloaded Fab Kills . | . . . Hacking | -11 -10 -10 --------- Run | Jun Mat Min Machines Accessed 4 | . 4 . Terminals 4 | . 4 . Fabricators . | . . . Repair Stations . | . . . Recycling Units . | . . . Scanalyzers . | . . . Garrison Access . | . . . Total Hacks 7 | . 7 . Successful 2 | . 2 . Failed 5 | . 5 . Catastrophic . | . . . Database Lockouts . | . . . Manual . | . . . Terminals 7 | . 7 . Fabricators . | . . . Repair Stations . | . . . Recycling Units . | . . . Scanalyzers . | . . . Garrison Access . | . . . Terminal Hacks 2 | . 2 . Robot Analysis 1 | . 1 . Prototype ID Bank 1 | . 1 . Fabricator Hacks . | . . . Repair Station Hacks . | . . . Recycling Unit Hacks . | . . . Scanalyzer . | . . . Garrison Access Hacks . | . . . Unauthorized Hacks . | . . . Terminals . | . . . Fabricators . | . . . Repair Stations . | . . . Recycling Units . | . . . Scanalyzers . | . . . Garrison Access . | . . . Data Cores Recovered . | . . . Used . | . . . Hacking Detections 2 | . 2 . Full Trace Events . | . . . Feedback Events . | . . . Feedback Blocked . | . . . Robot Schematics Acquired . | . . . Robots Built . | . . . Authchips . | . . . Time . | . . . Total Robot Build Rating . | . . . Part Schematics Acquired . | . . . Parts Built . | . . . Authchips . | . . . Time . | . . . Total Part Build Rating . | . . . Parts Repaired . | . . . Time . | . . . Parts Recycled . | . . . Recycled Matter . | . . . Retrieved Matter . | . . . Retrieved Components . | . . . Parts Scanalyzed . | . . . Part Schematics Acquired . | . . . Parts Damaged . | . . . Bothacking | -11 -10 -10 ------------ Run | Jun Mat Min Used RIF Installer . | . . . Robots Hacked . | . . . Non-combat . | . . . Combat . | . . . Robot Hacks Applied . | . . . Relay Couplers Released . | . . . Fabnet Peak Effective % . | . . . Robots Rewired . | . . . Allies Hacked . | . . . Hacks Repelled . | . . . Allies | -11 -10 -10 -------- Run | Jun Mat Min Total Allies . | . . . Largest Group . | . . . Highest-Rated Group . | . . . Highest-Rated Ally . | . . . Total Orders . | . . . Ally Attacks . | . . . Total Damage . | . . . Kills . | . . . Allies Corrupted . | . . . Allies Melted . | . . . Intel | -11 -10 -10 ------- Run | Jun Mat Min Robot Analysis Total 1 | . 1 . Derelict Logs Recovered . | . . . Drone Launches . | . . . Drone Recoveries . | . . . Exploration | -11 -10 -10 ------------- Run | Jun Mat Min Turns Passed 1699 | 78 1389 232 Spaces Moved 802 | 55 617 130 Core 11 | 8 . 3 Treads . | . . . Legs 755 | 47 617 91 Wheels 25 | . . 25 Hover 11 | . . 11 Flight . | . . . Fastest Speed 50 | 50 120 56 Average Speed 161 | 109 164 168 Slowest Speed 350 | 120 190 350 Overloaded Moves . | . . . Propulsion Burnouts . | . . . Robots Hopped . | . . . Cave-ins Triggered . | . . . Exploration Rate (%) 41 | 5 78 42 Regions Visited 2 Branch Regions 1 Pre-discovered Areas . | . . . Known Exits Taken . | . . . Unknown Exits Taken 2 | 1 1 . Scrap Searched 1 | . . 1 Spaces Dug . | . . . Terrain Destroyed 21 | . 10 11 Melee . | . . . Projectile . | . . . AOE 21 | . 10 11 Terrain Rammed . | . . . Walls Destroyed . | . . . Machines Disabled . | . . . Actions | -11 -10 -10 --------- Run | Jun Mat Min Total 1132 | 69 924 139 Wait 228 | 3 223 2 Move 800 | 54 616 130 Hop . | . . . Pick Up 24 | 5 19 . Fast Attach 7 | 5 2 . Attach 6 | 1 1 4 Detach . | . . . Swap 11 | 1 10 . Drop 17 | . 16 1 Fire 39 | . 37 2 Melee . | . . . Ram . | . . . Kick . | . . . Crush . | . . . Escape Stasis . | . . . Rewire . | . . . Trap . | . . . Miscellaneous . | . . . Route ------- -11/Junkyard -10/Materials (discovered 3 exits: [*Mat x2] / [*Min]) -10/Mines History --------- Turn | Location | Event 3 | -11/Junkyard | Discovered new exit (range 15) 79 | -11/Junkyard | Entered Materials 304 | -10/Materials | Build established: Mutant 428 | -10/Materials | Discovered new exit (range 16) 814 | -10/Materials | Discovered new exit (range 17) 998 | -10/Materials | Discovered new exit (range 12) 1032 | -10/Materials | Build established: Scavenger-Mutant 1468 | -10/Materials | Entered Mines 1587 | -10/Mines | Assembled infested the area 1592 | -10/Mines | Assisted by a Guerilla fighting off Assembled 1682 | -10/Mines | Core integrity fell below 50% 1691 | -10/Mines | Core integrity fell below 20% 1700 | -10/Mines | Destroyed by as-30690 with Assembled Rifle Last Messages --------------- 01609_ as-22388 destroyed. 01611_ D-53 Grenadier knocked back. 01612_ D-53 Grenadier destroyed. 01619_ R-06 Scavenger destroyed. 01623_ T-07 Excavator destroyed. 01626_ K-01 Serf collects debris. 01632_ K-01 Serf destroyed. 01638_ as-72435 destroyed. 01638_ as-55657 sneak attacks. 01638_ R-06 Scavenger system corrupted by crushing effect. 01639_ R-06 Scavenger system terminally corrupted. 01641_ as-55657 destroyed. 01641_ as-11141 destroyed. 01643_ Grenade Launcher destroyed. 01643_ Lgt. Nuclear Core destroyed. 01647_ Aluminum Leg destroyed. 01669_ T-07 Excavator is excavating. 01673_ Particle Gun destroyed. 01680_ Com. Wheel destroyed. 01693_ Dropped Lrg. Storage Unit. Map ----- +----------------------------------------------------+ | | | | | | | | | | | | | | | | | | | | | | | | | | | | | | | ?????????????????????????????????????????????????? | | ?????????????????????????????????????????????????? | | ??????????????????????????????########???????????? | | ???#######????????????????#### ##??????????? | | ??## #####?????????## #??????????? | | ??# ########### #??????????? | | ??# =a[ #???????????? | | ??# ???# $ !!a """ #????????????? | | ??# ??### =#### """ #????????????? | | ??# ????## #??## """ #?????????????? | | ???# #????# #???### @ #?????????????? | | ???# ##?## #?????## ### ##?????????????? | | ???# ## ##??????# #??? ##??????????????? | | ???# #???????# #????###???????????????? | | ??## #???????# #??????????????????????? | | ## ##???????# #??????????????????????? | | ########??# #??????????????????????? | | # #??# #??????????????????????? | | #### #??# #?????????????????????? | | ???## ###### #??# #?????????????????????? | | ????## ## ##????# #??## #??#??????????????????? | | ?????# ?# #?????# #???? ## ???????????????????? | | ?????# ??# #?????# #???? ????????????????????? | | ????? ??# #?????# #?### #?????????????????????? | | ???? ???# #?????# ### #?????????????????????? | | ??? #????# #?????# ## ###???????????????????? | | ??##?????# #?????# ## ##??????????????????? | | ?????????# #????##% ## #??????????????????? | | ?#####???# #???##!!!## ### ##??????????????????? | | ?? #???# #??## ## #????#???????????????????? | | ???# ##### #### #????????????????????????? | | ???# ## #????????????????????????? | | ???# ## ??????????????????????? | | ???# ####### ### """" ???????????????????? | | ???# #?????## ##?# """" #??????????????????? | +----------------------------------------------------+ Best States ------------- Heat Dissipation 25 Energy Generation 14 Energy Capacity 250 Matter Stores 300 Matter Capacity 300 Sight Range 18 Terrain Scan Density 10 Evasion (%) 55 Item Schematics ----------------- None Robot Schematics ------------------ None Fabricated ------------ Nothing Alien Tech Used ----------------- None Achievements -------------- None Challenges ------------ None Game ------ Seed ScatterTrapBarrier Manual? 0 Play Time 00:15:11 Cumulative 42.9 hours Start 2023.03.07 @ 01:50:43 End 2023.03.07 @ 02:08:57 Sessions 1 Manual Loads 0 Difficulty Rogue Special Mode None Game No. 35 Rogue 34 Adventurer 1 Explorer 0 Win Type - Total 0 Types 0/0/0/0/0/0/0/0/0 Lore% 22 Gallery% 35 Achievement% 26 Wizard Run 0 Options --------- ASCII 0 Keyboard 1 Movement Numpad Keybinds 0 Fullscreen 2 Font 12/Smallcaps Map View 83x54 Tactical HUD 1 Map Filters NONE Filters NONE Steam 1 RUN: 66fecb4b-1a2d-4e9b-af08-2351f104019b